Cogmind - Beta 14 @@@ ROGUE MODE // 2025.01.07 @ 13:11:18 Player: acra Result: Self-destructed Performance ------------- Evolutions (2) 1000 Regions Visited (4) 800 Robots Destroyed (24) 120 Value Destroyed (340) 340 Prototype IDs (1) 20 Alien Tech Used (0) 0 Bonus (0) 0 TOTAL SCORE: 2280 Bonus ------- None Cogmind --------- Core Integrity 485/550 Matter 270/300 Energy 250/250 System Corruption 0% Temperature Cool (0) Movement Core (250) Ox4 Location -8/Materials Parts ------- > --- POWER (1) -------- Ion Engine > --- PROPULSION (2) --- (None) > --- UTILITY (6) ------ Disposable Heat Sink Small Storage Unit Visual Processing Unit Signal Interpreter Terrain Scan Processor > --- WEAPON (2) ------- Particle Cannon > --- INVENTORY (8) ---- Light Ion Engine Light Ion Engine Light Ion Engine EM Pulse Gun Light Assault Rifle Improved Assault Rifle Peak State ------------ > --- POWER ------------ Light Ion Engine > --- PROPULSION ------- Improved Aluminum Leg Improved Aluminum Leg > --- UTILITY ---------- Disposable Heat Sink Small Storage Unit Terrain Scan Processor Hacking Suite > --- WEAPON ----------- Particle Cannon Improved Assault Rifle > --- INVENTORY -------- Light Ion Engine Light Ion Engine Light Ion Engine Compact Wheel Light Assault Rifle Light Cannon [Rating: 18] Favorites ----------- Power Light Ion Engine Engine Light Ion Engine Propulsion Improved Aluminum Leg Treads Light Treads Leg Improved Aluminum Leg Wheel Compact Wheel Utility Small Storage Unit Device Disposable Heat Sink Storage Small Storage Unit Processor Terrain Scan Processor Hackware Hacking Suite Weapon Particle Cannon Energy Gun EM Pulse Gun Energy Cannon Particle Cannon Ballistic Gun Improved Assault Rifle Ballistic Cannon Light Cannon Launcher Grenade Launcher Build | -11 -10 -10 -9 -8 ------- Run | Yrd Mat Min Mat Mat Slots Evolved 4 | . . . 2 2 Power . | . . . . . Propulsion . | . . . . . Utility 4 | . . . 2 2 Weapon . | . . . . . Parts Attached 32 | 8 11 3 8 2 Power 7 | 2 2 1 2 . Engine 7 | 2 2 1 2 . Core . | . . . . . Reactor . | . . . . . Propulsion 10 | 3 6 . 1 . Treads 5 | 2 3 . . . Leg 4 | 1 3 . . . Wheel 1 | . . . 1 . Hover . | . . . . . Flight . | . . . . . Utility 6 | 1 1 . 3 1 Device 1 | . . . 1 . Storage 1 | 1 . . . . Processor 3 | . . . 2 1 Hackware 1 | . 1 . . . Protection . | . . . . . Artifact . | . . . . . Weapon 9 | 2 2 2 2 1 Energy Gun 1 | 1 . . . . Energy Cannon 3 | . 2 . 1 . Ballistic Gun 3 | 1 . 1 1 . Ballistic Cannon 1 | . . 1 . . Launcher 1 | . . . . 1 Special Weapon . | . . . . . Impact Weapon . | . . . . . Slashing Weapon . | . . . . . Piercing Weapon . | . . . . . Special Melee Weapon . | . . . . . Unidentified Prototypes 1 | . . . 1 . Parts Lost 8 | . . 3 2 3 Power 1 | . . 1 . . Propulsion 3 | . . . 1 2 Utility 1 | . . . 1 . Weapon 3 | . . 2 . 1 Highest Loss Streak 3 | . . 3 1 3 To Critical Strikes . | . . . . . Average Slot Usage (%) 94 | . 99 97 93 86 Engine 11 | . 14 14 11 9 Treads 5 | . 18 . . . Leg 12 | . 9 28 13 8 Wheel 4 | . . . 6 6 Device 6 | . . . 10 9 Storage 11 | . 14 14 11 9 Processor 9 | . . . 11 27 Hackware 8 | . 13 14 7 . Energy Gun 2 | . 10 . . . Energy Cannon 8 | . 6 11 8 9 Ballistic Gun 10 | . 10 5 11 6 Ballistic Cannon 1 | . . 8 2 . Peak Build Rating 18 | 6 13 13 18 17 Average Rating 13 | 4 10 11 15 15 On Entrance 9 | . 6 13 11 15 Naked Turns . | . . . . . Heaviest Build 18 | 13 18 18 18 18 Greatest Support 40 | 40 40 26 26 16 Greatest Overweight (x) 5 | 2 . . 1 5 Average Overweight (x) . | . . . . 1 Largest Inventory Capacity 8 | 8 8 8 8 8 Average Capacity 7 | 7 8 8 8 8 Most Carried 8 | 3 8 8 8 6 Average Carried 6 | 2 6 6 6 6 Final Capacity 8 | 8 8 8 8 8 Final Carried 8 | 3 8 5 7 6 Class Distribution -------------------- 100% | Mutant Dominant Class ---------------- Mutant | -10/Materials Mutant | -10/Mines Mutant | -9/Materials Mutant | -8/Materials Resources | -11 -10 -10 -9 -8 ----------- Run | Yrd Mat Min Mat Mat Matter Collected 613 | 198 120 103 181 11 Remotely . | . . . . . Salvage Created 443 | . 204 . 215 24 Parts 40 | . 15 . 17 8 Haulers Intercepted . | . . . . . Recyclers Shooed 1 | . 1 . . . Parts Field Recycled . | . . . . . Retrieved Matter . | . . . . . Parts Self-Destructed . | . . . . . Prevented . | . . . . . Kills | -11 -10 -10 -9 -8 ------- Run | Yrd Mat Min Mat Mat Combat Hostiles Destroyed 19 | . 6 1 9 3 Guns 8 | . 6 . 2 . Cannons 8 | . . 1 6 1 AOE 2 | . . . . 2 Classes Destroyed 7 | . 4 1 2 . Builder 1 | . 1 . . . Recycler 1 | . 1 . . . Operator 2 | . 1 . 1 . Watcher 1 | . . . 1 . Swarmer 16 | . 6 . 7 3 Grunt 2 | . . . 2 . Demolisher 1 | . . 1 . . Best Kill Streak 5 | . 5 1 4 3 Combat Bots Only 4 | . 3 1 4 3 Max Kills in Single Turn 2 | . 2 1 1 2 Gunslinging . | . . . . . Exploded 2 | . . . . 2 Melee . | . . . . . Uniques/NPCs Destroyed . | . . . . . Combat | -11 -10 -10 -9 -8 -------- Run | Yrd Mat Min Mat Mat Hostile Shots Fired 159 | . 59 16 41 43 Missed 43 | . 19 1 10 13 Damage Taken 1559 | . 313 662 269 315 Core 357 | . 52 180 60 65 Absorbed by Shields . | . . . . . Core Remaining (%) 64 | 100 . 7 85 . Volleys Fired 55 | . 22 5 24 4 Largest 2 | . 2 2 2 2 Hottest 136 | . 60 136 91 98 Shots Fired 110 | . 44 10 48 8 Gun 71 | . 44 1 24 2 Cannon 37 | . . 9 24 4 Launcher 2 | . . . . 2 Special . | . . . . . Kinetic 60 | . 22 4 32 2 Thermal 26 | . . 6 16 4 Explosive 2 | . . . . 2 Electromagnetic 22 | . 22 . . . Robot Hit Streak 9 | . 3 3 9 3 Robot Miss Streak 6 | . 6 1 4 4 Penetration Max . | . . . . . Secondary Targets 1 | . 1 . . . Max Gunslinging Chain 1 | . 1 . . . Shots Hit Robots 55 | . 22 6 25 2 Core Hits 26 | . 12 2 9 3 Critical Kills 1 | . . . 1 . Critical Parts Destroyed . | . . . . . Critical Strikes 1 | . . . 1 . Meltdown 1 | . . . 1 . Melee Attacks . | . . . . . Impact . | . . . . . Slashing . | . . . . . Piercing . | . . . . . Sneak Attacks . | . . . . . Combat Hostiles . | . . . . . Follow-up Attacks . | . . . . . Damage Inflicted 1001 | . 273 108 444 176 Guns 424 | . 273 8 125 18 Cannons 460 | . . 100 319 41 Explosions 117 | . . . . 117 Melee . | . . . . . Ramming . | . . . . . Kinetic 365 | . 104 46 197 18 Thermal 350 | . . 62 247 41 Explosive 117 | . . . . 117 Electromagnetic 169 | . 169 . . . Impact . | . . . . . Slashing . | . . . . . Piercing . | . . . . . Highest Corruption . | . . . . . Average Corruption . | . . . . . Corruption Purged . | . . . . . Corruption Blocked . | . . . . . Overload Shots . | . . . . . Overflow Damage 39 | . . . 25 14 Projectiles 25 | . . . 25 . Explosions 14 | . . . . 14 Melee . | . . . . . Knockbacks . | . . . . . Impact . | . . . . . Kinetic . | . . . . . Secondary . | . . . . . Self-Inflicted Damage 39 | . . . . 39 Shots 1 | . . . . 1 Rammed . | . . . . . Targets Rammed . | . . . . . Kicked . | . . . . . Crushed . | . . . . . Highest Temperature 168 | . 60 150 168 36 Average Temperature 45 | . 29 76 54 16 Received Heat Transfer 27 | . . . 18 9 Siege Activations . | . . . . . Robots Corrupted . | . . . . . Combat Hostiles . | . . . . . Parts Fried . | . . . . . Impact Corruptions . | . . . . . Robots Melted 1 | . . . 1 . Combat Hostiles 1 | . . . 1 . Parts Melted 3 | . . . 3 . Heat Transferred 629 | . . 111 444 74 Parts Sabotaged . | . . . . . Parts Stolen . | . . . . . Parts Stripped . | . . . . . Power Chain Reactions . | . . . . . Alert | -11 -10 -10 -9 -8 ------- Run | Yrd Mat Min Mat Mat Peak Influence 276 | . 190 73 276 183 Initial 73 | . . 73 12 63 Average 123 | . 109 40 157 120 Maximum Alert Level 1 | . . . 1 . Low Security (%) 87 | 100 100 100 74 100 Level 1 12 | . . . 25 . Level 2 . | . . . . . Level 3 . | . . . . . Level 4 . | . . . . . Level 5 . | . . . . . High Security . | . . . . . Max Security . | . . . . . Squads Dispatched 3 | . . . 2 1 Investigation . | . . . . . Extermination . | . . . . . Reinforcement 3 | . . . 2 1 Assault . | . . . . . Garrison . | . . . . . Intercept . | . . . . . Searches Triggered . | . . . . . Construction Impeded . | . . . . . Haulers Reinforced . | . . . . . Active Scanning Responses . | . . . . . Cargo Convoy Interrupts . | . . . . . Stealth | -11 -10 -10 -9 -8 --------- Run | Yrd Mat Min Mat Mat Distress Signals 1 | . . . . 1 Communications Jammed . | . . . . . Distress Signals . | . . . . . Times Spotted 35 | . 8 2 15 10 Peak Tracking Total 6 | . 3 2 5 6 Tactical Retreats 2 | . . . 2 . Traps | -11 -10 -10 -9 -8 ------- Run | Yrd Mat Min Mat Mat Traps Triggered . | . . . . . Indirectly . | . . . . . Trap Hack Attempts . | . . . . . Triggered . | . . . . . Disarmed . | . . . . . Reprogrammed . | . . . . . Reused . | . . . . . Traps Extracted . | . . . . . Installed . | . . . . . Triggered . | . . . . . Machines | -11 -10 -10 -9 -8 ---------- Run | Yrd Mat Min Mat Mat Machines Disabled . | . . . . . Max in Single Turn . | . . . . . Machines Repaired . | . . . . . Machines Dismantled . | . . . . . Machines Sabotaged . | . . . . . Overloaded Fab Kills . | . . . . . Hacking | -11 -10 -10 -9 -8 --------- Run | Yrd Mat Min Mat Mat Machines Accessed 6 | . 1 . 2 3 Terminals 6 | . 1 . 2 3 Fabricators . | . . . . . Repair Stations . | . . . . . Recycling Units . | . . . . . Scanalyzers . | . . . . . Garrison Access . | . . . . . Total Hacks 14 | . 3 . 5 6 Successful 5 | . 1 . 2 2 Failed 9 | . 2 . 3 4 Catastrophic 1 | . . . . 1 Database Lockouts . | . . . . . Manual 10 | . 3 . 2 5 Terminals 14 | . 3 . 5 6 Fabricators . | . . . . . Repair Stations . | . . . . . Recycling Units . | . . . . . Scanalyzers . | . . . . . Garrison Access . | . . . . . Terminal Hacks 5 | . 1 . 2 2 Part Schematic 1 | . . . 1 . Robot Analysis 1 | . . . 1 . Terminal Index 1 | . 1 . . . Recall Reinforcements 1 | . . . . 1 Zone Layout 1 | . . . . 1 Fabricator Hacks . | . . . . . Repair Station Hacks . | . . . . . Recycling Unit Hacks . | . . . . . Scanalyzer . | . . . . . Garrison Access Hacks . | . . . . . Unauthorized Hacks . | . . . . . Terminals . | . . . . . Fabricators . | . . . . . Repair Stations . | . . . . . Recycling Units . | . . . . . Scanalyzers . | . . . . . Garrison Access . | . . . . . Data Cores Recovered 1 | . 1 . . . Used . | . . . . . Hacking Detections 5 | . 1 . 2 2 Full Trace Events . | . . . . . Feedback Events . | . . . . . Feedback Blocked . | . . . . . Robot Schematics Acquired . | . . . . . Robots Built . | . . . . . Authchips . | . . . . . Time . | . . . . . Total Robot Build Rating . | . . . . . Part Schematics Acquired 1 | . . . 1 . Parts Built . | . . . . . Authchips . | . . . . . Time . | . . . . . Total Part Build Rating . | . . . . . Parts Repaired . | . . . . . Time . | . . . . . Parts Recycled . | . . . . . Recycled Matter . | . . . . . Retrieved Matter . | . . . . . Retrieved Components . | . . . . . Parts Scanalyzed . | . . . . . Part Schematics Acquired . | . . . . . Parts Damaged . | . . . . . Bothacking | -11 -10 -10 -9 -8 ------------ Run | Yrd Mat Min Mat Mat Used RIF Installer . | . . . . . Robots Hacked . | . . . . . Non-combat . | . . . . . Combat . | . . . . . Robot Hacks Applied . | . . . . . Relay Couplers Released . | . . . . . Fabnet Peak Effective % . | . . . . . Robots Rewired . | . . . . . Allies Hacked . | . . . . . Hacks Repelled . | . . . . . Allies | -11 -10 -10 -9 -8 -------- Run | Yrd Mat Min Mat Mat Total Allies 2 | . . 2 . . Largest Group 2 | . . 2 . . Highest-Rated Group 42 | . . 42 . . Highest-Rated Ally 31 | . . 31 . . Total Orders . | . . . . . Ally Attacks 2 | . . 2 . . Total Damage . | . . . . . Kills . | . . . . . Allies Corrupted . | . . . . . Allies Melted . | . . . . . Intel | -11 -10 -10 -9 -8 ------- Run | Yrd Mat Min Mat Mat Robot Analysis Total 1 | . . . 1 . Derelict Logs Recovered 1 | . . 1 . . Drone Launches . | . . . . . Drone Recoveries . | . . . . . Exploration | -11 -10 -10 -9 -8 ------------- Run | Yrd Mat Min Mat Mat Turns Passed 865 | 66 215 48 436 100 Spaces Moved 504 | 36 94 26 286 62 Core 11 | 6 . . . 5 Treads 71 | 29 42 . . . Legs 171 | 1 52 26 86 6 Wheels 251 | . . . 200 51 Hover . | . . . . . Flight . | . . . . . Fastest Speed 50 | 50 120 120 100 115 Average Speed 124 | 147 137 120 115 137 Slowest Speed 300 | 160 160 120 190 300 Overloaded Moves . | . . . . . Propulsion Burnouts . | . . . . . Robots Hopped . | . . . . . Cave-ins Triggered . | . . . . . Exploration Rate (%) 14 | 4 19 11 26 14 Regions Visited 4 Branch Regions 1 Pre-discovered Areas . | . . . . . Known Exits Taken 1 | . . . 1 . Unknown Exits Taken 3 | 1 1 1 . . Scrap Searched . | . . . . . Spaces Dug . | . . . . . Terrain Destroyed 14 | . . 1 . 13 Melee . | . . . . . Projectile 1 | . . 1 . . AOE 13 | . . . . 13 Terrain Rammed . | . . . . . Walls Destroyed . | . . . . . Machines Disabled . | . . . . . Actions | -11 -10 -10 -9 -8 --------- Run | Yrd Mat Min Mat Mat Total 632 | 46 141 33 344 68 Wait 18 | . . . 18 . Move 500 | 35 93 25 285 62 Hop . | . . . . . Pick Up 15 | 2 8 . 5 . Fast Attach 11 | 7 2 . 2 . Attach 13 | . 6 3 3 1 Detach 3 | . 2 . 1 . Swap 8 | 1 3 . 3 1 Drop 9 | 1 5 . 3 . Fire 55 | . 22 5 24 4 Melee . | . . . . . Ram . | . . . . . Kick . | . . . . . Crush . | . . . . . Escape Stasis . | . . . . . Rewire . | . . . . . Trap . | . . . . . Miscellaneous . | . . . . . Route ------- -11/Scrapyard -10/Materials -10/Mines -9/Materials -8/Materials History --------- Turn | Location | Event 7 | -11/Scrapyard | Discovered new exit (range 16) 67 | -11/Scrapyard | Entered Materials 227 | -10/Materials | Discovered new exit (range 7) 282 | -10/Materials | Entered Mines 283 | -10/Mines | Assembled infested the area 285 | -10/Mines | Learned Materials terminal intel 298 | -10/Mines | Core integrity fell below 50% 304 | -10/Mines | Core integrity fell below 20% 316 | -10/Mines | Discovered new exit (range 10) 330 | -10/Mines | Entered Materials 330 | -9/Materials | Evolved 2 slots: Utility x2 331 | -9/Materials | Loaded intel: 12 terminal locations 338 | -9/Materials | Lost 3 parts (1p2w) 351 | -9/Materials | Build established: Mutant 750 | -9/Materials | Discovered new exit (range 3) 766 | -9/Materials | Identified exit to Materials 766 | -9/Materials | Entered another Materials area 766 | -8/Materials | Evolved 2 slots: Utility x2 866 | -8/Materials | Self-destructed Last Messages --------------- K-01 Serf collects debris. S-10 Pest destroyed. Com. Wheel destroyed. Destroyed Com. Wheel. K-01 Serf collects debris. S-10 Pest destroyed. Destroyed Flight Unit. S-10 Pest destroyed. The unstable cave ceiling collapses. K-01 Serf collects debris. Acquired 11 matter. K-01 Serf collects debris. The unstable cave ceiling collapses. K-01 Serf collects debris. Imp. Aluminum Leg destroyed. K-01 Serf collects debris. U-05 Engineer builds a Wall. K-01 Serf collects debris. U-05 Engineer builds a Wall. Grenade Launcher destroyed. Map ----- +----------------------------------------------------+ | ???????????????""" + + ?? | | ??????????????? # # ?? | | ??????????????? ## ###T## #"T"# # ?? | | ??????????????? ## #?#### #"""# # ?? | | ???????????????######+######/##### # ?? | | ???????????????###?# / #########?? | | ??????????????? #?# """ """ # #?????????? | | ??????????????? #?# """ """ # #########?? | | ??????????????? #?# """ """ "T" # # ?? | | ??????????????? #?# """ # # ?? | | ??????????????? #?# # # ?? | | ??????????????? #?############ ## # ?? | | ??????????????? #????????######## + ?? | | ??????????????? #????????# # # ?? | | ???????????????############ """ # # ?? | | ??????????????? + "T" # # ?? | | ???????????????############ # ####?####?? | | ????????????????########### ! =# # #??? | | ????????????????# ! #! # # || #??? | | ????????????????# [ ### # + || #??? | | ????????????????# ^ [ [* # #??? | | ????????????????# """ """ s%= [ # #??? | | ????????????????# """ """ * # #??? | | ????????????????# """ """s ## # #####+###??? | | ????????????????# s# #######??????????? | | ????????????????# @# #????????????????? | | ????????????????########### #????????????????? | | ??????????????????????????# #????????????????? | | ??????????????????????????# #????????????????? | | ?????????????????????????? #????????????????? | | ????????????????????????? #????????????????? | | ????????????????????????? #????????????????? | | ???????????????????????? #????????????????? | | ???????????????????????! #????????????????? | | ???????????????????????#! #????????????????? | | ????????????????????????### #????????????????? | | ??????????????????????????# ????????????????? | | ???????????????????????????#+##????????????????? | | ???????????????????????????????????????????????? | | ???????????????????????????????????????????????? | | ???????????????????????????????????????????????? | | ???????????????????????????????????????????????? | | ???????????????????????????????????????????????? | | ???????????????????????????????????????????????? | | ???????????????????????????????????????????????? | | ???????????????????????????????????????????????? | | ???????????????????????????????????????????????? | | ???????????????????????????????????????????????? | | ???????????????????????????????????????????????? | | ???????????????????????????????????????????????? | +----------------------------------------------------+ Best States ------------- Heat Dissipation 31 Coolant Potential 50 Energy Generation 10 Energy Capacity 250 Matter Stores 300 Matter Capacity 300 Sight Range 18 Terrain Scan Density 85 Evasion (%) 55 Recoil Reduction 2 Offensive Hacking 10 Item Schematics ----------------- Imp. Aluminum Leg | -9/Materials | Hacked Robot Schematics ------------------ None Fabricated ------------ Nothing Alien Tech Used ----------------- None Achievements -------------- None Challenges ------------ None Game ------ Seed HardenedKineticCharger Manual? 0 Play Time 00:13:02 Cumulative 24.6 hours Start 2025.01.07 @ 12:59:44 End 2025.01.07 @ 13:11:18 Sessions 1 Manual Loads 0 Difficulty Rogue Special Mode None Game No. 34 Rogue 17 Adventurer 16 Explorer 1 Win Type - Total 3 Types 3/0/0/0/0/0/0/0/0 Lore% 7 Gallery% 30 Achievement% 31 Wizard Run 0 Options --------- Layout 1 ASCII 0 Keyboard 0 Movement Mouse Keybinds 0 Fullscreen 1 Font 24/Smallcaps Map View 50x35 Zoom Use 0% Tactical HUD 0 Map Filters NONE Filters NONE Steam 1 RUN: 3b1753bb-e6b4-41dc-9399-1e30a06a5c3d